fUSD/lending_fUSD_20250521
["ID","MTS","AMOUNT","RATE_DAILY","PERIOD"]
[361847849,1747836657638,-420.0,0.00033698,5]
[361847850,1747836657648,-420.0,0.00033698,5]
[361847851,1747836657658,-420.0,0.00033698,5]
[361847852,1747836657669,-420.0,0.00033698,5]
[361847853,1747836657679,-420.0,0.00033698,5]
[361847854,1747836657693,-971.03,0.00033698,5]
[361847855,1747836657703,-420.0,0.00033698,5]
[361847856,1747836657713,-420.0,0.00033698,5]
[361847857,1747836657723,-420.0,0.00033698,5]
[361847858,1747836657734,-169.66206029,0.00033698,5]
[361847859,1747836657750,-69.62481554,0.00033698,5]
[361847860,1747836657760,-1502.38,0.00033698,5]
[361847861,1747836657771,-402.04697262,0.00033698,5]
[361847862,1747836657783,-17.95302738,0.00033698,5]
[361847863,1747836657794,-473.7706638,0.00033698,5]
[361847864,1747836657804,-420.0,0.00033698,5]
[361847865,1747836657814,-1018.44,0.00033698,5]
[361847866,1747836657824,-1426.86,0.00033698,5]
[361847867,1747836657833,-420.0,0.00033698,5]
[361847868,1747836657843,-478.32,0.00033698,5]
[361847869,1747836657853,-420.0,0.00033698,5]
[361847870,1747836657864,-695.03576889,0.00033698,5]
[361847871,1747836657877,-315.46423111,0.00033698,5]
[361847872,1747836657887,-420.0,0.00033698,5]
[361847873,1747836657898,-420.0,0.00033698,5]
[361847874,1747836657908,-835.0,0.00033698,5]
[361847875,1747836657919,-71.39556889,0.00033698,5]
[361847876,1747836657991,-353.60443111,0.00033698,5]
[361847877,1747836658001,-2046.11,0.00033698,5]
[361847878,1747836658011,-204.93354787,0.00033698,5]
[361847879,1747836658165,-151.0,0.00032876,7]
[361847880,1747836658175,-151.0,0.00032876,7]
[361847881,1747836658185,-151.0,0.00032876,7]
[361847882,1747836658195,-84.25,0.00032876,7]
[361847883,1747836658208,-66.75,0.00032876,7]
[361847884,1747836658217,-151.0,0.00033131,7]
[361847885,1747836658227,-420.0,0.00033698,5]
[361847886,1747836658238,-1382.88,0.00033698,5]
[361847887,1747836658248,-530.67000002,0.00033698,5]
[361847888,1747836658260,-641.97999998,0.00033698,5]
[361847889,1747836658271,-3264.92,0.00033698,5]
[361847890,1747836658281,-2626.44,0.00033698,5]
[361847891,1747836658291,-420.0,0.00033698,5]
[361847892,1747836658301,-170.04,0.00033698,5]
[361847893,1747836658311,-420.0,0.00033698,5]
[361847894,1747836658321,-937.01,0.00033698,5]
[361847895,1747836658331,-884.29,0.00033698,5]
[361847896,1747836658340,-420.0,0.00033698,5]
[361847897,1747836658350,-749.61,0.00033698,5]
[361847898,1747836658359,-1419.86,0.00033698,5]
[361847899,1747836658369,-266.66861422,0.00033698,5]
[361847900,1747836658379,-3630.88338811,0.00033698,5]
[361847901,1747836658458,-48.65661189,0.00033698,5]
[361847902,1747836658468,-420.0,0.00033698,5]
[361847903,1747836658478,-420.0,0.00033698,5]
[361847904,1747836658488,-732.85,0.00033698,5]
[361847905,1747836658500,-715.92,0.00033698,5]
[361847906,1747836658510,-1133.19,0.00033698,5]
[361847907,1747836658762,-420.0,0.00033698,5]
[361847908,1747836658773,-481.59,0.00033698,5]
[361847909,1747836658783,-420.0,0.00033698,5]
[361847910,1747836658793,-12488.16,0.00033698,5]
[361847911,1747836658802,-420.0,0.00033698,5]
[361847912,1747836658811,-528.9,0.00033698,5]
[361847913,1747836658821,-7364.72114166,0.00033698,5]
[361847914,1747836658833,-4422.15885834,0.00033698,5]
[361847915,1747836658842,-6052.84,0.00033698,5]
[361847916,1747836658852,-1862.59065697,0.00033698,5]
[361847917,1747836691692,500.0,0.00027397,120]
[361847918,1747837087733,2743.243089,7.945e-05,2]
[361847922,1747837509404,-199.06858681,0.00012,2]
[361847923,1747837512464,-253.34586606,0.00012,2]
[361847924,1747837517613,-325.51681753,0.00012,2]
[361847925,1747837519344,-179.04751958,0.00012,2]
[361847926,1747837526531,-158.6911181,0.00012,2]
[361847927,1747837528152,-200.0,0.00012,2]
[361847928,1747837533387,-176.330591,0.00011999,2]
[361847929,1747837537363,-123.669409,0.00011999,2]
[361847930,1747837537391,-126.330591,0.00012,2]
[361847931,1747837542386,-270.93693571,0.00012,2]
[361847932,1747837543921,-288.73543293,0.00012,2]
[361847933,1747837549388,-345.96991892,0.00012,2]
[361847934,1747837551087,-343.9501342,0.00012,2]
[361847935,1747837558573,-208.0,0.000115,2]
[361847936,1747837560087,-205.12935786,0.000115,2]
[361847937,1747837565262,-174.20902974,0.00011499,2]
[361847938,1747837567090,-125.79097026,0.00011499,2]
[361847939,1747837567114,-47.57309175,0.000115,2]
[361847940,1747837569787,-154.78,0.000115,2]
[361847941,1747837573159,-221.3883138,0.000115,2]
[361847942,1747837577402,-334.65219525,0.000115,2]
[361847943,1747837582354,-224.21812125,0.000115,2]
[361847944,1747837584273,187.334728,0.00011442,2]
[361847945,1747837584951,-157.06958621,0.000115,2]
[361847946,1747837589470,-300.00124853,0.000115,2]
[361847947,1747837591596,-153.96254158,0.000115,2]
[361847949,1747837599800,-197.999999,0.000115,2]
[361847950,1747837605373,-224.9289075,0.000115,2]
[361847951,1747837607635,-270.98,0.000115,2]
[361847952,1747837612876,-200.0,0.000115,2]
[361847953,1747837614976,-171.67624742,0.000115,2]
[361847954,1747837616406,-194.85052597,0.000115,2]
[361847955,1747837621647,-226.32028476,0.000115,2]
[361847956,1747837624332,-168.47132671,0.000115,2]
[361847958,1747837630250,-226.24455807,0.000115,2]
[361847959,1747837631789,-315.27128866,0.000115,2]
[361847960,1747837637552,-169.51201583,0.000115,2]
[361847961,1747837640260,-218.59695874,0.000115,2]
[361847962,1747837645725,-162.05176874,0.000115,2]
[361847963,1747837647230,-232.91323714,0.000115,2]
[361847964,1747837654277,-236.29,0.000115,2]
[361847980,1747837832022,-609.0,0.00011499,2]
[361847981,1747837832032,-516.4437,0.000115,2]
[361847982,1747837832047,-1856.34571312,0.000115,2]
[361847983,1747837832131,-2325.47098,0.000115,2]
[361847984,1747837832144,-543.38303211,0.000115,2]
[361847985,1747837832155,-691.55231982,0.000115,2]
[361847986,1747837832384,-270.18197164,0.000117,4]
[361847988,1747837832399,-420.68212066,0.000117,4]
[361847989,1747837832419,-809.1359077,0.000117,4]
[361847990,1747837832428,-378.61802257,0.000118,4]
[361847991,1747837832440,-2721.38197743,0.000118,4]
[361847993,1747837832450,-4700.0,0.000119,4]
[361847994,1747837832459,-231.99954072,0.000119,2]
[361847998,1747837832469,-3538.74329115,0.000119,2]
[361848001,1747837832478,-162.28652155,0.000119,2]
[361848003,1747837832488,-501.37693936,0.00011973,2]
[361848005,1747837832497,-6945.1636484,0.0001199,2]
[361848006,1747837832509,-10890.77236308,0.0001199,2]
[361848007,1747837832521,-30094.71712172,0.0001199,2]
[361848008,1747837832531,-1000.0,0.00011999,2]
[361848009,1747837832541,-443.25338718,0.00011999,2]
[361848011,1747837832551,-500.0,0.00011999,2]
[361848013,1747837832561,-500.0,0.00011999,2]
[361848014,1747837832571,-500.0,0.00011999,2]
[361848015,1747837832580,-500.0,0.00011999,2]
[361848016,1747837832589,-500.0,0.00011999,2]
[361848017,1747837832599,-500.0,0.00011999,2]
[361848018,1747837832608,-500.0,0.00011999,2]
[361848019,1747837832618,-500.0,0.00011999,2]
[361848020,1747837832628,-500.0,0.00011999,2]
[361848021,1747837832637,-500.0,0.00011999,2]
[361848022,1747837832648,-500.0,0.00011999,2]
[361848023,1747837832658,-500.0,0.00011999,2]
[361848024,1747837832668,-500.0,0.00011999,2]
[361848025,1747837832677,-500.0,0.00011999,2]
[361848026,1747837832687,-500.0,0.00011999,2]
[361848027,1747837832697,-500.0,0.00011999,2]
[361848028,1747837832707,-500.0,0.00011999,2]
[361848029,1747837832716,-500.0,0.00011999,2]
[361848030,1747837832726,-500.0,0.00011999,2]
[361848031,1747837832736,-500.0,0.00011999,2]
[361848032,1747837832747,-500.0,0.00011999,2]
[361848033,1747837832757,-500.0,0.00011999,2]
[361848034,1747837832766,-500.0,0.00011999,2]
[361848035,1747837832776,-500.0,0.00011999,2]
[361848036,1747837832785,-500.0,0.00011999,2]
[361848037,1747837832795,-500.0,0.00011999,2]
[361848038,1747837832804,-500.0,0.00011999,2]
[361848039,1747837832814,-500.0,0.00011999,2]
[361848040,1747837832825,-500.0,0.00011999,2]
[361848041,1747837832834,-500.0,0.00011999,2]
[361848042,1747837832844,-500.0,0.00011999,2]
[361848043,1747837832853,-249.66469022,0.00011999,2]
[361848044,1747837832864,-500.0,0.00011999,2]
[361848045,1747837832874,-500.0,0.00011999,2]
[361848046,1747837832884,-500.0,0.00011999,2]
[361848047,1747837832895,-500.0,0.00011999,2]
[361848048,1747837832904,-500.0,0.00011999,2]
[361848049,1747837832914,-500.0,0.00011999,2]
[361848050,1747837832923,-67223.9687993,0.00012,2]
[361848051,1747837832936,-68301.17469182,0.00012,2]
[361848054,1747837838047,-784.12,0.000119,2]
[361848055,1747837838079,-358.0820569,0.000119,2]
[361848056,1747837838097,-167.80609911,0.0001199,2]
[361848057,1747837838118,-39.22550837,0.0001199,2]
[361848058,1747837838132,-107606.84918121,0.00012,2]
[361848059,1747837838152,-1519.0,0.00012,2]
[361848060,1747837838170,-539.4768,0.00012,2]
[361848061,1747837838187,-7463.83697243,0.00012,2]
[361848066,1747837838233,-182520.12070851,0.00012,2]
[361848113,1747837840178,-3226.51497736,0.00012,2]
[361848114,1747837840195,-3583.12810072,0.00012,2]
[361848115,1747837840209,-3699.979966,0.00012,2]
[361848116,1747837840920,-0.00680084,0.00012,2]
[361848117,1747837840947,-18836.00943692,0.00012,2]
[361848118,1747837840962,-17314.3262376,0.00012,2]
[361848119,1747837840976,-470.493024,0.00012,2]
[361848120,1747837840992,-1060.60933547,0.00012,2]
[361848121,1747837842556,188.68776601,0.000114,2]
[361848151,1747837843234,-2654.16007831,0.00012,2]
[361848161,1747837843320,-43585.10902643,0.00012,2]
[361848164,1747837843343,-1848014.26352183,0.00012,2]
[361848167,1747837843363,-2127.5000002,0.00012,2]
[361848172,1747837843394,-51713.33495556,0.00012,2]
[361848174,1747837843406,-72879.88561572,0.00012,2]
[361848176,1747837843419,-359.38072491,0.00012329,2]
[361848179,1747837843431,-192.92,0.000125,2]
[361848181,1747837843443,-192.92,0.000125,2]
[361848183,1747837843456,-192.92,0.000125,2]
[361848185,1747837843468,-192.92,0.000125,2]
[361848186,1747837843480,-192.92,0.000125,2]
[361848187,1747837843492,-192.92,0.000125,2]
[361848188,1747837843507,-192.92,0.000125,2]
[361848191,1747837843519,-192.92,0.000125,2]
[361848193,1747837843531,-192.92,0.000125,2]
[361848195,1747837843543,-192.92,0.000125,2]
[361848197,1747837843555,-192.92,0.000125,2]
[361848199,1747837843567,-192.92,0.000125,2]
[361848202,1747837843579,-192.92,0.000125,2]
[361848204,1747837843591,-192.92,0.000125,2]
[361848205,1747837843603,-192.92,0.000125,2]
[361848206,1747837843616,-192.92,0.000125,2]
[361848207,1747837843627,-192.92,0.000125,2]
[361848208,1747837843638,-192.92,0.000125,2]
[361848209,1747837843650,-192.92,0.000125,2]
[361848210,1747837843663,-192.92,0.000125,2]
[361848211,1747837843675,-192.92,0.000125,2]
[361848212,1747837843686,-192.92,0.000125,2]
[361848213,1747837843697,-192.92,0.000125,2]
[361848214,1747837843709,-5139.1036104,0.00013368,2]
[361848215,1747837843720,-153.3,0.00013699,2]
[361848216,1747837843732,-3538.74329109,0.00014341,2]
[361848217,1747837843743,-1142.2020569,0.00014372,2]
[361848218,1747837843754,-162.28652149,0.00015141,2]
[361848219,1747837843766,-231.99954072,0.00015626,2]
[361848220,1747837843779,-2148.83,0.00016045,2]
[361848221,1747837843793,-8951.21428619,0.000165,2]
[361848222,1747837843804,-363.23,0.00016564,2]
[361848223,1747837843816,-3538.74329109,0.00016783,2]
[361848225,1747837843827,-558.15,0.00017276,2]
[361848226,1747837843840,-162.28652149,0.00018382,2]
[361848227,1747837843851,-227.30595927,0.000185,2]
[361848228,1747837843862,-227.305959,0.000185,2]
[361848230,1747837843874,-227.305959,0.000185,2]
[361848231,1747837843886,-227.305959,0.000185,2]
[361848232,1747837843898,-227.305959,0.000185,2]
[361848233,1747837843911,-227.305959,0.000185,2]
[361848234,1747837843921,-227.305959,0.00018728,2]
[361848235,1747837843933,-3538.74329109,0.00019224,2]
[361848236,1747837843944,-231.99954072,0.00019352,2]
[361848238,1747837843956,-227.305959,0.00019866,2]
[361848240,1747837843967,-4000.0,0.0002,4]
[361848242,1747837843979,-227.305959,0.00021003,4]
[361848243,1747837843991,-162.28652149,0.00021623,2]
[361848244,1747837844003,-3538.74329109,0.00021665,2]
[361848245,1747837844014,-227.305959,0.00022141,6]
[361848246,1747837844026,-231.99954072,0.00023078,2]
[361848247,1747837844037,-227.305959,0.00023279,8]
[361848248,1747837844048,-204.28,0.00024,7]
[361848249,1747837844060,-192.92,0.00024097,2]
[361848250,1747837844075,-3538.74329109,0.00024107,2]
[361848251,1747837844086,-227.305959,0.00024417,11]
[361848252,1747837844096,-22000.2164661,0.000248,2]
[361848253,1747837844109,-162.28652149,0.00024864,2]
[361848254,1747837844120,-4000.0,0.00025,4]
[361848255,1747837844130,-227.305959,0.00025555,13]
[361848256,1747837844141,-701.88,0.00025635,2]
[361848257,1747837844151,-3538.74329109,0.00026548,2]
[361848258,1747837844512,-1000.0,0.00026653,2]
[361848259,1747837844542,-227.305959,0.00026693,15]
[361848260,1747837844567,-231.99954072,0.00026804,2]
[361848261,1747837844579,-1195.94,0.00027454,120]
[361848262,1747837844589,-227.305959,0.00027831,17]
[361848263,1747837844599,-162.28652149,0.00028106,2]
[361848264,1747837844610,-227.305959,0.00028969,20]
[361848265,1747837844619,-3538.74329109,0.00028989,2]
[361848266,1747837844629,-4858.81,0.00029372,2]
[361848267,1747837844638,-1169.33,0.00029613,2]
[361848268,1747837844648,-376.59323977,0.00029739,2]
[361848269,1747837844659,-192.92,0.00029975,2]
[361848270,1747837844669,-1000.0,0.00029985,2]
[361848271,1747837844678,-164.97176229,0.0003,120]
[361848272,1747837844688,-4000.0,0.0003,4]
[361848273,1747837844698,-227.305959,0.00030107,22]
[361848274,1747837844708,-157.40318676,0.00030137,2]
[361848275,1747837844719,-250.0,0.00030301,2]
[361848276,1747837844730,-231.99954072,0.0003053,2]
[361848277,1747837844741,-1195.94,0.00030886,120]
[361848278,1747837844751,-575.6157526,0.00031,2]
[361848279,1747837844762,-3640.82536833,0.00031,120]
[361848280,1747837844772,-900.0,0.00031,32]
[361848281,1747837844781,-200.0,0.00031032,2]
[361848282,1747837844791,-164.84,0.00031084,2]
[361848283,1747837844801,-204.28,0.000311,7]
[361848284,1747837844810,-4199.17,0.00031102,2]
[361848285,1747837844820,-227.305959,0.00031245,24]
[361848286,1747837844830,-200.0,0.00031288,2]
[361848287,1747837844840,-246.61,0.000313,2]
[361848288,1747837844850,-153.3,0.00031311,2]
[361848289,1747837844860,-19412.31,0.0003138,2]
[361848290,1747837844870,-192.92,0.0003139,2]
[361848291,1747837844879,-35702.01124358,0.000314,30]
[361848292,1747837844889,-352.8,0.00031429,2]
[361848293,1747837844900,-3538.74329109,0.00031431,2]
[361848294,1747837844912,-207.4,0.00031461,2]
[361848295,1747837844922,-662.83106123,0.00031461,2]
[361848296,1747837844932,-151.0,0.00031461,2]
[361848297,1747837844942,-192.92,0.00031469,2]
[361848298,1747837844952,-29181.88,0.0003148,2]
[361848299,1747837844961,-5853.11,0.00031507,2]
[361848300,1747837844971,-2183.22,0.0003155,2]
[361848301,1747837844981,-150.99,0.00031659,2]
[361848302,1747837844990,-6182.54,0.00031659,2]
[361848303,1747837845000,-192.92,0.00031725,2]
[361848304,1747837845010,-192.92,0.00031728,2]
[361848305,1747837845020,-999.99,0.00031735,2]
[361848306,1747837845030,-860.68,0.00031735,2]
[361848307,1747837845039,-499.99,0.00031735,2]
[361848308,1747837845050,-1418.2,0.00031735,2]
[361848309,1747837845060,-150.99,0.00031735,2]
[361848310,1747837845075,-1031.03,0.00031735,20]
[361848311,1747837845085,-2270.42,0.00031735,2]
[361848312,1747837845094,-38888.68,0.00031735,10]
[361848313,1747837845104,-9999.99,0.00031735,2]
[361848314,1747837845114,-1408.37,0.00031736,2]
[361848315,1747837845124,-139295.36676747,0.00031738,7]
[361848316,1747837845147,-10740.0,0.00031738,7]
[361848320,1747837846139,-1142.2020569,0.00016843,2]
[361848321,1747837846150,-37714.86348604,0.00031738,7]
[361848322,1747837846161,-23900.0,0.00031738,2]
[361848323,1747837846170,-150.0,0.00031823,2]
[361848324,1747837846181,-1169.33,0.00031877,2]
[361848325,1747837846191,-6300.0,0.000319,11]
[361848326,1747837846202,-1500.0,0.00031947,120]
[361848327,1747837846212,-2751.0,0.00032021,120]
[361848328,1747837846223,-187.34,0.00032025,2]
[361848329,1747837846232,-500.0,0.00032072,2]
[361848330,1747837846242,-1047.29,0.00032137,2]
[361848331,1747837846254,-2115.68,0.00032165,2]
[361848332,1747837846264,-3737.07,0.00032264,2]
[361848333,1747837846274,-204.28,0.000323,7]
[361848334,1747837846284,-163.94,0.00032321,2]
[361848335,1747837846294,-227.305959,0.00032383,26]
[361848336,1747837846304,-250.0,0.00032528,2]
[361848337,1747837846313,-352.8,0.00032607,2]
[361848338,1747837846323,-304.52,0.00032659,2]
[361848339,1747837846332,-192.92,0.00032661,2]
[361848340,1747837846342,-1087.639361,0.00032671,4]
[361848341,1747837846355,-302.77,0.00032737,2]
[361848342,1747837846364,-305.56,0.00032737,2]
[361848343,1747837846374,-300.58,0.00032737,2]
[361848344,1747837846385,-303.21,0.00032738,2]
[361848345,1747837846396,-886.1739,0.00032776,30]
[361848347,1747837846406,-215.0738,0.0003283,2]
[361848348,1747837846415,-156.587,0.0003283,2]
[361848349,1747837846425,-192.92,0.00032866,2]
[361848350,1747837846435,-192.92,0.00032866,2]
[361848351,1747837846444,-192.92,0.00032866,2]
[361848352,1747837846453,-192.92,0.00032866,2]
[361848353,1747837846462,-192.92,0.00032866,2]
[361848354,1747837846471,-192.92,0.00032866,2]
[361848355,1747837846480,-192.92,0.00032866,2]
[361848356,1747837846489,-192.92,0.00032866,2]
[361848357,1747837846500,-192.92,0.00032866,2]
[361848358,1747837846510,-192.92,0.00032866,2]
[361848359,1747837846521,-192.92,0.00032866,2]
[361848360,1747837846533,-173.074,0.00032875,33]
[361848361,1747837846544,-420.0,0.00032876,5]
[361848362,1747837846553,-420.0,0.00032876,5]
[361848363,1747837846563,-420.0,0.00032876,5]
[361848364,1747837846574,-420.0,0.00032876,5]
[361848365,1747837846583,-420.0,0.00032876,5]
[361848366,1747837846593,-420.0,0.00032876,5]
[361848367,1747837846603,-420.0,0.00032876,5]
[361848368,1747837846612,-385.59411941,0.00032876,5]
[361848369,1747837846623,-420.0,0.00032876,5]
[361848370,1747837846634,-420.0,0.00032876,3]
[361848371,1747837846644,-420.0,0.00032876,5]
[361848372,1747837846654,-657.53,0.00032876,5]
[361848373,1747837846664,-420.0,0.00032876,5]
[361848374,1747837846674,-420.0,0.00032876,5]
[361848375,1747837846684,-558.02,0.00032876,5]
[361848376,1747837846694,-420.0,0.00032876,5]
[361848377,1747837846704,-420.0,0.00032876,5]
[361848378,1747837846714,-877.32,0.00032876,5]
[361848379,1747837846724,-420.0,0.00032876,5]
[361848380,1747837846734,-420.0,0.00032876,5]
[361848381,1747837846744,-420.0,0.00032876,5]
[361848382,1747837846754,-845.96,0.00032876,5]
[361848383,1747837846764,-1310.54,0.00032876,5]
[361848384,1747837846774,-420.0,0.00032876,5]
[361848385,1747837846784,-433.94135662,0.00032876,5]
[361848386,1747837846794,-420.0,0.00032876,5]
[361848387,1747837846804,-480.7,0.00032876,5]
[361848388,1747837846813,-420.0,0.00032876,5]
[361848389,1747837846824,-420.0,0.00032876,5]
[361848390,1747837846834,-420.0,0.00032876,5]
[361848391,1747837846844,-420.0,0.00032876,5]
[361848392,1747837846854,-420.0,0.00032876,5]
[361848393,1747837846863,-420.0,0.00032876,5]
[361848394,1747837846873,-420.0,0.00032876,5]
[361848395,1747837846883,-420.0,0.00032876,5]
[361848396,1747837846893,-420.0,0.00032876,5]
[361848397,1747837846902,-420.0,0.00032876,5]
[361848398,1747837846914,-588.69,0.00032876,5]
[361848399,1747837846924,-420.0,0.00032876,5]
[361848400,1747837846934,-420.0,0.00032876,5]
[361848401,1747837846944,-420.0,0.00032876,5]
[361848402,1747837846954,-420.0,0.00032876,5]
[361848403,1747837846964,-420.0,0.00032876,5]
[361848404,1747837846974,-420.0,0.00032876,5]
[361848405,1747837846983,-152.16579137,0.00032876,5]
[361848406,1747837846993,-420.0,0.00032876,5]
[361848407,1747837847003,-475.42,0.00032876,5]
[361848408,1747837847013,-951.61,0.00032876,5]
[361848409,1747837847023,-420.0,0.00032876,5]
[361848410,1747837847033,-420.0,0.00032876,5]
[361848411,1747837847043,-420.0,0.00032876,5]
[361848412,1747837847052,-420.0,0.00032876,5]
[361848413,1747837847062,-783.7,0.00032876,5]
[361848414,1747837847076,-1255.0,0.00032876,5]
[361848415,1747837847086,-420.0,0.00032876,5]
[361848416,1747837847096,-420.0,0.00032876,5]
[361848417,1747837847105,-420.0,0.00032876,5]
[361848418,1747837847116,-420.0,0.00032876,5]
[361848419,1747837847126,-420.0,0.00032876,5]
[361848420,1747837847136,-565.77,0.00032876,5]
[361848421,1747837847150,-523.44,0.00032876,5]
[361848422,1747837847163,-420.0,0.00032876,5]
[361848423,1747837847173,-539.93,0.00032876,5]
[361848424,1747837847183,-420.0,0.00032876,5]
[361848425,1747837847193,-420.0,0.00032876,5]
[361848426,1747837847203,-1018.69,0.00032876,5]
[361848427,1747837847212,-1215.84,0.00032876,5]
[361848428,1747837847222,-449.60436065,0.00032876,5]
[361848429,1747837847232,-420.0,0.00032876,5]
[361848430,1747837847242,-420.0,0.00032876,5]
[361848431,1747837847252,-420.0,0.00032876,5]
[361848432,1747837847261,-420.0,0.00032876,5]
[361848433,1747837847271,-420.0,0.00032876,5]
[361848434,1747837847281,-420.0,0.00032876,5]
[361848435,1747837847291,-417.00971902,0.00032876,5]
[361848436,1747837847301,-420.0,0.00032876,5]
[361848437,1747837847311,-420.0,0.00032876,5]
[361848438,1747837847321,-420.0,0.00032876,5]
[361848439,1747837847331,-420.0,0.00032876,5]
[361848440,1747837847341,-809.19,0.00032876,5]
[361848441,1747837847350,-420.0,0.00032876,5]
[361848442,1747837847360,-566.22,0.00032876,5]
[361848443,1747837847369,-420.0,0.00032876,5]
[361848444,1747837847379,-695.83,0.00032876,5]
[361848445,1747837847389,-420.0,0.00032876,5]
[361848446,1747837847398,-1229.03,0.00032876,5]
[361848447,1747837847408,-420.0,0.00032876,5]
[361848448,1747837847418,-1819.79,0.00032876,5]
[361848449,1747837847427,-468.08,0.00032876,5]
[361848450,1747837847438,-420.0,0.00032876,5]
[361848451,1747837847447,-789.92,0.00032876,5]
[361848452,1747837847457,-2450.77,0.00032876,5]
[361848453,1747837847467,-420.0,0.00032876,5]
[361848454,1747837847478,-1375.21,0.00032876,5]
[361848455,1747837847487,-1084.56,0.00032876,5]
[361848456,1747837847497,-1967.02,0.00032876,5]
[361848457,1747837847507,-977.21,0.00032876,5]
[361848458,1747837847517,-736.91,0.00032876,5]
[361848459,1747837847526,-420.0,0.00032876,5]
[361848460,1747837847536,-660.04,0.00032876,5]
[361848461,1747837847546,-420.0,0.00032876,5]
[361848462,1747837847556,-596.6,0.00032876,5]
[361848463,1747837847565,-420.0,0.00032876,5]
[361848464,1747837847575,-1338.59,0.00032876,5]
[361848465,1747837847585,-1163.13,0.00032876,5]
[361848466,1747837847595,-944.33,0.00032876,5]
[361848467,1747837847604,-960.37,0.00032876,5]
[361848468,1747837847614,-528.1,0.00032876,5]
[361848469,1747837847624,-540.64,0.00032876,5]
[361848470,1747837847634,-644.6,0.00032876,5]
[361848471,1747837847645,-4270.48,0.00032876,5]
[361848472,1747837847654,-420.0,0.00032876,5]
[361848473,1747837847666,-578.68,0.00032876,5]
[361848474,1747837847677,-610.84,0.00032876,5]
[361848475,1747837847687,-612.78,0.00032876,5]
[361848476,1747837847697,-420.0,0.00032876,5]
[361848477,1747837847707,-776.93,0.00032876,5]
[361848478,1747837847716,-420.0,0.00032876,5]
[361848479,1747837847726,-420.0,0.00032876,5]
[361848480,1747837847736,-1397.94,0.00032876,5]
[361848481,1747837847746,-674.92,0.00032876,5]
[361848482,1747837847756,-2113.7,0.00032876,5]
[361848483,1747837847766,-670.34,0.00032876,5]
[361848484,1747837847775,-2522.6,0.00032876,5]
[361848485,1747837847786,-420.0,0.00032876,5]
[361848486,1747837847796,-420.0,0.00032876,5]
[361848487,1747837847806,-673.87,0.00032876,5]
[361848488,1747837847816,-420.0,0.00032876,5]
[361848489,1747837847825,-1085.48,0.00032876,5]
[361848490,1747837847835,-427.8,0.00032876,5]
[361848491,1747837847844,-517.87,0.00032876,5]
[361848492,1747837847854,-897.12,0.00032876,5]
[361848493,1747837847864,-781.67,0.00032876,5]
[361848494,1747837847873,-420.0,0.00032876,5]
[361848495,1747837847883,-167.22522179,0.00032876,5]
[361848496,1747837847892,-640.57,0.00032876,5]
[361848497,1747837847902,-420.0,0.00032876,5]
[361848498,1747837847913,-428.67,0.00032876,5]
[361848499,1747837847924,-517.65,0.00032876,5]
[361848500,1747837847934,-420.0,0.00032876,5]
[361848501,1747837847944,-420.0,0.00032876,5]
[361848502,1747837847954,-420.0,0.00032876,5]